bitfinex/quotes_ETHUSD_20260304
["timestamp","ask_amount","ask_price","bid_price","bid_amount"]
[1772641756451,1.54894434,2143.8,2143.5,0.001]
[1772641756650,1.115,2143.8,2143.5,0.001]
[1772641757282,0.43397928,2143.7,2143.2,0.001]
[1772641757454,7.185846,2143.8,2143.2,0.001]
[1772641757852,0.43398636,2143.7,2143.2,0.001]
[1772641758079,7.23705395,2143.7,2143.2,0.001]
[1772641758387,6.50484891,2143.6,2143.2,0.001]
[1772641758557,0.43400291,2143.5,2143.2,0.001]
[1772641758887,6.407599,2143.5,2142.2,7.647645]
[1772641759057,6.407599,2143.4,2142.2,7.647645]
[1772641759256,1.116,2143.3,2142.2,7.647645]
[1772641759976,7.08959609,2143.3,2142.2,7.647645]
[1772641760180,1.16648002,2143.2,2142.2,7.647645]
[1772641760354,1.16648002,2143.2,2142.2,6.48064104]
[1772641760355,7.14007611,2143.2,2142.2,6.48064104]
[1772641760551,7.14007611,2143.2,2142.1,1.16705675]
[1772641760795,5.97359609,2143.1,2142.0,7.21545071]
[1772641761004,1.16648002,2143.2,2142.0,7.21545071]
[1772641761300,4.6655391,2143.4,2142.0,7.21545071]
[1772641762377,5.97359609,2143.8,2142.2,6.04833827]
[1772641762577,1.16619132,2143.8,2142.2,6.04833827]
[1772641762971,5.97359609,2144.1,2142.4,6.04833827]
[1772641763175,6.21569206,2144.0,2142.4,6.04833827]
[1772641763376,4.66427448,2144.0,2142.4,6.04833827]
[1772641763997,1.16604477,2144.0,2142.6,6.04833827]
[1772641764298,1.16604477,2144.0,2142.8,7.21503604]
[1772641766483,1.16604477,2144.0,2142.9,1.084]
[1772641766690,1.16604477,2144.0,2143.0,5.98706176]
[1772641768001,4.66382323,2144.2,2143.0,5.98706176]
[1772641768194,1.16604477,2144.0,2143.2,5.98706176]
[1772641768595,7.40240945,2144.0,2142.9,2.25062441]
[1772641768778,7.40240945,2144.0,2143.0,5.98806176]
[1772641769172,0.002,2143.8,2143.0,5.98806176]
[1772641769577,7.35836468,2143.8,2143.0,0.001]
[1772641769796,0.43450863,2143.7,2143.0,0.001]
[1772641769997,1.122,2143.8,2143.0,0.001]
[1772641770206,1.16626236,2143.6,2143.0,0.001]
[1772641770707,1.16624995,2143.7,2143.0,0.001]
[1772641772487,4.66674792,2143.8,2143.0,0.001]
[1772641772995,10.9031126,2143.8,2143.0,0.001]
[1772641773199,0.43465093,2143.7,2143.0,0.001]
[1772641773386,10.9031126,2143.8,2143.0,0.001]
[1772641773594,0.43465093,2143.7,2143.0,0.001]
[1772641773827,0.002,2143.8,2143.0,5.98806176]
[1772641773979,0.002,2143.8,2143.0,7.07306176]
[1772641774617,0.002,2143.8,2143.2,5.98706176]
[1772641776313,0.002,2143.8,2143.2,7.07306176]
[1772641776824,0.002,2143.8,2143.3,7.15348736]
[1772641778685,0.002,2143.8,2143.3,1.1664256]
[1772641778887,6.23636468,2143.7,2143.0,0.001]
[1772641779113,6.67113119,2143.6,2142.5,0.001]
[1772641779313,6.23636468,2143.4,2142.5,1.16783148]
[1772641780321,0.43485052,2143.3,2142.5,1.16785602]
[1772641780494,6.23636468,2143.4,2142.5,1.16785602]
[1772641780694,0.43485153,2143.3,2142.5,1.16785602]
[1772641780919,1.1664256,2143.3,2142.5,1.16785602]
[1772641781130,1.1664256,2143.3,2142.5,0.001]
[1772641781301,7.40279028,2143.3,2142.5,0.001]
[1772641781622,6.67119896,2143.2,2142.5,0.001]
[1772641781824,0.43483428,2143.1,2142.5,0.001]
[1772641782021,1.1664256,2143.3,2142.5,0.001]
[1772641782324,6.67131288,2143.2,2142.5,0.001]
[1772641782516,6.23636468,2143.2,2142.5,0.001]
[1772641782708,6.67133038,2143.1,2142.5,0.001]
[1772641782912,7.83790507,2143.0,2142.5,0.001]
[1772641783117,7.40295357,2143.0,2142.5,0.001]
[1772641783307,7.40295357,2143.0,2142.7,0.001]
[1772641785113,1.16658889,2143.0,2142.7,0.001]
[1772641786695,7.40295357,2143.0,2142.5,0.001]
[1772641787097,6.23636468,2142.8,2142.5,0.001]
[1772641787333,6.23636468,2142.6,2142.5,0.001]
[1772641787623,6.23636468,2142.6,2142.2,0.001]
[1772641788515,6.39598758,2142.9,2142.2,0.001]
[1772641788721,2.29258889,2143.0,2142.2,5.96608506]
[1772641789023,0.43465903,2142.9,2142.2,5.96608506]
[1772641789223,1.16658889,2143.0,2142.3,1.16697007]
[1772641789640,1.16658889,2143.0,2142.2,7.13309531]
[1772641789800,1.16658889,2143.0,2142.2,7.13309381]
[1772641790935,4.66548674,2143.4,2142.4,5.96508506]
[1772641791134,1.16637118,2143.4,2142.4,7.05508506]
[1772641791629,1.16835158,2143.5,2142.6,5.96508506]
[1772641793833,0.002,2143.5,2142.7,7.13183728]
[1772641794665,0.002,2143.7,2142.8,5.96508506]
[1772641794838,0.002,2144.0,2142.9,7.12162106]
[1772641795021,0.002,2144.0,2143.1,5.96508506]
[1772641795611,0.002,2144.0,2143.3,5.96508506]
[1772641795811,0.002,2144.0,2143.5,5.96508506]
[1772641796633,0.002,2144.0,2143.6,1.092]
[1772641798022,0.002,2144.0,2143.7,1.16620795]
[1772641798336,0.002,2144.0,2143.6,2.25822129]
[1772641798543,0.002,2143.7,2143.6,2.25822129]
[1772641798843,0.002,2143.7,2143.6,1.092]
[1772641799013,0.002,2143.7,2143.6,2.25826236]
[1772641800348,0.002,2143.7,2143.1,5.96508506]
[1772641800526,0.002,2143.7,2143.1,1.16653445]
[1772641800719,0.002,2143.7,2143.0,8.22566109]
[1772641800918,0.002,2143.7,2143.1,5.96508506]
[1772641801131,0.002,2143.7,2143.0,2.26057603]
[1772641801132,0.002,2144.0,2143.2,5.96508506]
[1772641801314,0.002,2144.0,2143.0,2.26057603]
[1772641801315,6.39798758,2144.0,2143.0,1.16757603]
[1772641801536,6.39798758,2144.0,2143.0,2.26157603]
[1772641802137,7.56208674,2143.9,2143.0,2.26157603]
[1772641802751,7.56208674,2143.9,2143.0,2.2615787]
[1772641802950,0.43369151,2143.8,2143.0,0.001]
[1772641803174,6.39598758,2143.6,2143.0,0.001]
[1772641803469,6.39598758,2143.6,2142.8,0.001]
[1772641803671,6.39598758,2143.4,2142.8,0.001]
[1772641804225,7.56241318,2143.3,2142.8,0.001]
[1772641804635,1.1664256,2143.3,2142.8,0.001]
[1772641805231,7.56241318,2143.3,2142.8,0.001]
[1772641805644,6.82978936,2143.2,2142.5,0.001]
[1772641805851,6.39598758,2143.0,2142.5,0.001]
[1772641806226,1.16664333,2142.9,2142.5,0.001]
[1772641806646,11.06256091,2143.0,2142.5,0.001]
[1772641806647,1.16662863,2143.0,2142.5,0.001]
[1772641806852,1.131,2143.2,2142.5,5.96608506]
[1772641806853,2.29749918,2143.2,2142.5,5.96608506]
[1772641807053,1.1664682,2143.3,2142.5,5.96608506]
[1772641807226,1.16631677,2143.5,2142.5,5.96608506]
[1772641807629,1.16628952,2143.6,2142.5,5.96608506]
[1772641807826,7.5622771,2143.6,2142.5,0.001]
[1772641808032,6.82980953,2143.5,2142.5,0.001]
[1772641808238,6.39598758,2143.3,2142.5,0.001]
[1772641808751,1.16634621,2143.5,2142.6,5.96508506]
[1772641810154,7.56233379,2143.5,2142.5,0.001]
[1772641810350,6.82992654,2143.4,2142.5,0.001]
[1772641810548,6.39598758,2143.4,2142.5,0.001]
[1772641810932,1.16634621,2143.5,2142.5,5.96608506]
[1772641811128,1.16630525,2143.6,2142.5,5.96608506]
[1772641811352,1.16630525,2143.6,2142.7,0.001]
[1772641812140,0.002,2143.3,2142.7,0.001]
[1772641812455,1.1684256,2143.3,2142.7,0.001]
[1772641813528,0.002,2143.3,2142.7,5.96608506]
[1772641813732,0.002,2143.8,2142.8,5.96508506]
[1772641813960,0.002,2143.8,2143.0,5.96508506]
[1772641814331,0.002,2143.8,2143.2,5.96508506]
[1772641814866,0.002,2143.8,2143.1,1.16653445]
[1772641815037,0.002,2143.8,2143.1,2.26453445]
[1772641815359,0.002,2143.8,2143.2,5.96508506]
[1772641816746,0.002,2143.8,2143.3,7.13151066]
[1772641817763,6.39798758,2143.8,2142.8,4.66671576]
[1772641817948,6.39798758,2143.8,2142.8,1.16669777]
[1772641818150,6.39598758,2143.6,2142.7,1.16773275]
[1772641818461,0.002,2143.8,2142.7,7.55434205]
[1772641818642,1.16626236,2143.6,2142.7,7.55434205]
[1772641819233,7.11823833,2143.6,2142.7,0.001]
[1772641819438,5.95197597,2143.4,2142.7,0.001]
[1772641819638,5.95197597,2143.4,2142.7,1.16773285]
[1772641819949,1.16626236,2143.6,2142.7,1.16773285]
[1772641820263,1.16626236,2143.6,2142.8,7.4856093]
[1772641820857,4.66704944,2143.8,2142.9,1.16664333]
[1772641820858,0.002,2143.8,2142.9,1.16664333]
[1772641821068,0.43440008,2143.7,2142.8,8.65326349]
[1772641821237,6.38637605,2143.6,2142.8,1.16665419]
[1772641821562,5.95197597,2143.6,2142.8,1.16665419]
[1772641822667,5.95197597,2143.6,2142.7,1.16771116]
[1772641822836,1.16631677,2143.5,2142.7,1.16771116]
[1772641823768,1.16631677,2143.5,2142.7,0.001]
[1772641824068,5.95197597,2143.3,2142.5,0.001]
[1772641824252,6.38648768,2143.2,2142.5,0.001]
[1772641824567,0.43446933,2143.1,2142.5,0.001]
[1772641824768,0.43446933,2143.1,2141.6,2.26834751]
[1772641824769,5.95197597,2142.8,2141.6,2.26834751]
[1772641824938,5.88780093,2142.6,2141.6,1.16734751]
[1772641825138,6.32227026,2142.5,2141.6,1.16734751]
[1772641825467,5.88780093,2142.5,2141.6,1.16734751]
[1772641826061,5.88780093,2142.3,2141.2,1.16753508]
[1772641826253,5.88780093,2142.3,2141.2,7.66450773]
[1772641826584,5.88780093,2142.6,2141.2,7.66450773]
[1772641826780,1.1669156,2142.4,2141.2,7.66450773]
[1772641827094,1.16682882,2142.6,2141.2,7.66450773]
[1772641827796,1.135,2142.7,2141.2,7.66450773]
[1772641827957,1.16674725,2142.8,2141.2,7.66450773]
[1772641828156,7.05436733,2143.1,2141.3,6.49697265]
[1772641828355,1.136,2143.4,2141.6,0.065536]
[1772641828554,2.30237855,2143.4,2141.7,6.49697265]
[1772641828766,5.88780093,2143.3,2141.9,6.49697265]
[1772641829070,5.88780093,2143.3,2142.1,6.49697265]
[1772641829275,1.16637855,2143.4,2142.1,6.49697265]
[1772641829706,7.05417948,2143.4,2142.1,6.49697265]
[1772641830580,4.66518847,2143.6,2142.2,6.49697265]
[1772641830892,1.16637118,2143.4,2142.4,6.49697265]
[1772641831087,1.16637118,2143.4,2142.5,1.103]
[1772641831246,1.16626236,2143.6,2142.5,7.59997265]
[1772641831845,5.88780093,2143.4,2142.3,1.16697007]
[1772641832080,5.88780093,2143.4,2142.2,2.26998593]
[1772641832376,6.32214569,2143.3,2142.2,7.66395858]
[1772641832547,5.88780093,2143.3,2142.2,7.66395858]
[1772641832743,1.16626236,2143.6,2142.2,1.16698593]
[1772641832744,5.88780093,2143.1,2142.2,1.16698593]
[1772641833084,5.88780093,2143.1,2141.9,11.16571629]
[1772641833085,1.16658889,2143.0,2142.0,1.16713352]
[1772641833253,7.05438982,2143.0,2142.0,1.16713352]
[1772641834579,2.30256878,2143.1,2142.0,7.66410617]
[1772641835254,2.30256878,2143.1,2142.1,1.103]
[1772641835456,8.19036971,2143.1,2142.1,1.103]
[1772641836274,1.16825035,2143.7,2142.3,6.49697265]
[1772641836493,1.16821241,2143.7,2142.3,6.49697265]
[1772641836698,1.16821241,2143.7,2142.4,6.49697265]
[1772641836699,0.002,2143.7,2142.4,6.49697265]
[1772641836876,0.002,2143.7,2142.7,6.49697265]
[1772641837081,0.002,2143.8,2142.9,7.66361598]
[1772641838077,0.002,2143.9,2143.1,6.49697265]
[1772641839008,0.002,2143.9,2143.3,6.49697265]
[1772641839312,0.002,2144.6,2143.7,6.49697265]
[1772641840186,0.002,2143.8,2143.7,6.49697265]
[1772641840508,0.002,2144.6,2143.7,7.60197265]
[1772641840878,0.002,2144.1,2143.7,7.60197265]
[1772641841074,0.002,2144.1,2143.8,1.16615355]
[1772641841608,0.002,2144.1,2143.9,7.60197265]
[1772641841990,0.002,2144.6,2143.9,7.60197265]
[1772641843215,0.002,2144.6,2144.1,6.49697265]
[1772641843513,0.002,2144.6,2143.9,2.2720575]
[1772641844724,0.002,2144.6,2144.0,6.49697265]
[1772641845188,0.002,2144.6,2144.1,7.66296304]
[1772641845388,0.002,2144.6,2144.2,1.107]
[1772641845782,0.002,2144.6,2143.5,1.16631677]
[1772641845985,0.002,2144.6,2143.9,1.107]
[1772641846316,5.88980093,2144.6,2143.3,1.107]
[1772641847202,5.88780093,2144.4,2143.4,1.16637118]
[1772641848515,5.88780093,2144.4,2143.3,2.27339138]
[1772641848718,5.88780093,2144.4,2142.5,4.66734965]
[1772641848719,5.88780093,2144.4,2143.1,1.108]
[1772641848921,5.88780093,2144.4,2143.1,7.31647826]
[1772641849321,7.01912833,2144.3,2143.2,1.16648002]
[1772641849628,7.01912833,2144.3,2142.8,5.77458549]
[1772641849801,7.01912833,2144.3,2142.8,11.98306375]
[1772641850003,7.01912833,2144.3,2142.9,6.20847826]
[1772641851089,7.01912833,2144.3,2142.8,4.66658549]
[1772641851287,7.01912833,2144.3,2142.6,4.66679111]
[1772641851520,7.01912833,2144.3,2142.7,1.109]
[1772641851918,7.01912833,2144.3,2142.7,0.78105999]
[1772641852427,5.8532467,2144.1,2142.7,0.78105999]
[1772641853196,7.01912833,2144.3,2143.2,0.001]
[1772641853420,5.8532467,2144.1,2143.2,0.001]
[1772641853931,5.8532467,2144.1,2143.0,0.001]
[1772641855322,5.8532467,2143.9,2143.0,0.001]
[1772641856823,5.8532467,2143.7,2143.0,0.001]
[1772641857834,7.01950906,2143.6,2143.0,0.001]
[1772641858215,1.16626236,2143.6,2143.0,0.001]
[1772641858416,4.66483183,2143.8,2143.0,0.001]
[1772641858722,5.8532467,2143.7,2143.0,0.001]
[1772641859901,7.01950906,2143.6,2143.0,0.001]
[1772641860726,8.88048685,2143.9,2143.0,0.001]
[1772641861028,1.1661329,2143.9,2143.0,6.20947826]
[1772641861224,7.0193796,2143.9,2143.0,0.001]
[1772641861427,5.8532467,2143.7,2143.0,0.001]
[1772641861601,6.9872467,2143.7,2143.0,0.001]
[1772641861931,7.01956347,2143.5,2142.7,0.001]
[1772641863134,5.79926708,2143.7,2142.7,0.001]
[1772641863135,2.30020795,2143.7,2142.7,6.20947826]
[1772641863354,2.30020795,2143.7,2142.7,0.001]
[1772641863355,5.8532467,2143.6,2142.7,0.001]
[1772641863501,5.8532467,2143.4,2142.7,0.001]
[1772641863827,5.8532467,2143.2,2142.7,0.001]
[1772641864011,7.01978115,2143.1,2142.7,0.001]
[1772641865028,2.30150575,2143.2,2142.7,0.001]
[1772641865210,5.8532467,2143.1,2142.7,0.001]
[1772641865616,2.30150575,2143.2,2142.7,0.001]
[1772641865924,10.51829622,2143.6,2142.7,0.001]
[1772641866141,6.28656632,2143.5,2142.7,0.001]
[1772641866348,6.28656632,2143.4,2142.7,0.001]
[1772641866527,5.8532467,2143.2,2142.7,0.001]
[1772641866935,1.136,2143.9,2142.8,6.20847826]
[1772641867272,2.30211702,2143.9,2142.8,6.20847826]
[1772641867743,0.002,2144.2,2143.0,6.20847826]
[1772641867916,0.002,2144.2,2143.2,6.20847826]
[1772641868947,0.002,2143.5,2143.2,6.20847826]
[1772641869525,0.002,2144.2,2143.2,6.20847826]
[1772641869725,0.002,2143.8,2143.2,6.20847826]
[1772641870049,0.002,2143.8,2143.3,1.1664256]
[1772641870424,0.002,2143.8,2143.3,7.51088501]
[1772641870625,0.002,2144.6,2143.4,6.34445941]
[1772641871239,1.16974561,2144.6,2143.5,7.45245941]
[1772641871550,1.16974561,2144.6,2143.6,1.108]
[1772641871754,1.16972009,2144.6,2143.6,7.45245941]
[1772641871954,1.16972009,2144.6,2143.6,6.34445941]
[1772641872120,0.004,2144.6,2143.7,1.16620795]
[1772641872642,0.004,2144.6,2143.8,6.34445941]
[1772641873214,0.002,2144.7,2143.8,6.34445941]
[1772641873456,0.004,2144.7,2143.8,6.34445941]
[1772641874046,0.004,2144.7,2143.9,1.16609916]
[1772641874246,0.004,2144.7,2144.0,6.34445941]
[1772641874451,0.004,2144.7,2144.1,6.34445941]
[1772641874675,0.002,2144.6,2144.0,1.108]
[1772641875051,0.002,2144.6,2143.9,1.16609916]
[1772641876070,1.16771854,2144.6,2143.8,4.66460297]
[1772641876272,7.12067024,2144.6,2143.0,6.34445941]
[1772641876480,5.9529517,2144.3,2143.0,8.6190483]
[1772641876946,0.002,2144.2,2143.1,6.34445941]
[1772641877773,0.002,2144.1,2143.1,6.34445941]
[1772641877981,0.002,2144.1,2143.2,1.109]
[1772641878278,0.002,2144.1,2143.3,1.1664256]
[1772641880791,6.05049306,2144.1,2143.3,1.1664256]
[1772641881080,6.05049306,2144.1,2143.0,5.77522629]
[1772641881785,0.002,2144.1,2143.1,6.40617025]
[1772641882689,0.002,2144.1,2143.2,7.57265027]
[1772641884086,0.002,2144.1,2143.2,7.57365027]
[1772641885357,0.002,2144.4,2143.3,6.20527477]
[1772641886987,0.002,2144.4,2143.4,7.37164595]
[1772641887283,0.002,2144.4,2143.6,6.20527477]
[1772641888672,0.002,2144.4,2143.7,6.20527477]
[1772641888874,0.002,2144.7,2144.2,6.20527477]
[1772641889069,0.002,2144.7,2144.3,1.111]
[1772641889391,0.002,2144.7,2144.3,7.31627477]
[1772641890079,1.16523997,2145.5,2144.3,7.31627477]
[1772641890494,7.08779526,2145.5,2144.4,7.31727477]
[1772641890809,7.08779526,2145.5,2144.4,1.112]
[1772641890972,7.08779526,2145.5,2144.5,1.1657729]
[1772641891408,4.66039059,2145.8,2144.6,6.20527477]
[1772641891706,5.92255529,2145.7,2144.6,6.20527477]
[1772641892401,5.92255529,2145.7,2144.5,1.1657729]
[1772641892703,5.92255529,2145.7,2144.5,7.37104767]
[1772641893094,1.16517524,2145.6,2144.5,7.37104767]
[1772641893296,5.92255529,2146.1,2144.5,7.37104767]
[1772641893470,5.92255529,2146.5,2144.9,6.20527477]
[1772641893669,5.92255529,2146.5,2145.1,6.20527477]
[1772641893910,6.35510171,2146.4,2144.9,1.113]
[1772641894110,5.92255529,2146.2,2144.9,1.113]
[1772641894519,5.92255529,2146.0,2144.5,7.37104767]
[1772641894677,5.92255529,2145.8,2144.6,7.31927477]
[1772641895004,5.92255529,2146.2,2144.6,6.20527477]
[1772641895200,5.92255529,2145.9,2144.7,2.27966419]
[1772641895907,5.92255529,2145.8,2144.7,2.27966419]
[1772641897079,1.1650438,2145.9,2144.9,7.37083027]
[1772641897379,1.16499839,2146.0,2144.9,7.37083027]
[1772641897579,5.92255529,2146.2,2144.9,1.1655555]
[1772641897807,5.92255529,2146.0,2144.9,1.1655555]
[1772641898012,5.92255529,2146.0,2144.8,1.16557534]
[1772641898626,5.92255529,2145.8,2144.8,1.16557534]
[1772641898829,0.002,2145.6,2144.8,7.37085011]
[1772641900314,0.002,2145.8,2144.9,6.20527477]
[1772641900607,0.002,2146.1,2144.9,6.20527477]
[1772641900811,1.16463244,2146.6,2144.9,6.20527477]
[1772641901209,1.16463244,2146.6,2145.1,6.20527477]
[1772641901388,1.16455468,2146.8,2145.3,6.20527477]
[1772641901714,1.164307,2147.2,2146.1,6.20527477]
[1772641901914,7.08686229,2147.2,2146.2,1.116]
[1772641902409,7.08686229,2147.2,2146.3,1.116]
[1772641902824,1.164307,2147.2,2146.3,1.116]
[1772641903413,5.92255529,2147.1,2145.7,7.32127477]
[1772641903823,5.92255529,2147.1,2145.7,1.116]
[1772641903996,5.92255529,2147.1,2145.7,7.32127477]
[1772641904518,5.92255529,2147.1,2145.7,6.20527477]
[1772641904693,5.92255529,2147.1,2145.8,1.116]
[1772641904897,5.92255529,2147.1,2145.8,7.32127477]
[1772641905621,1.16441546,2147.0,2145.9,7.37028711]
[1772641906213,1.16436207,2147.1,2145.9,7.37028711]
[1772641906498,0.02329683,2147.3,2145.9,7.37028711]
[1772641906696,0.02329683,2147.3,2146.3,6.20527477]
[1772641907000,0.02329683,2147.3,2146.2,2.67395522]
[1772641907001,1.18755508,2147.3,2146.4,7.32227477]
[1772641907197,0.02329683,2147.3,2146.4,7.32227477]
[1772641907809,1.18755081,2147.3,2146.5,1.16468669]
[1772641908206,0.02329683,2147.3,2146.6,6.20527477]
[1772641908797,4.65507418,2148.2,2146.6,6.20527477]
[1772641909000,7.40484022,2148.5,2146.6,6.20527477]
[1772641909512,7.40484022,2148.5,2146.7,1.117]
[1772641909833,7.40484022,2148.5,2147.0,6.31473933]
[1772641910707,7.40484022,2148.5,2147.1,1.117]
[1772641911648,7.40484022,2148.5,2147.1,7.43173933]
[1772641911847,7.40484022,2148.5,2147.2,7.47904633]
[1772641912014,6.24123771,2148.5,2147.2,7.47904633]
[1772641912216,1.47818534,2149.1,2147.4,6.31473933]
[1772641912547,6.24123771,2149.0,2147.5,1.117]
[1772641912759,6.24123771,2148.8,2147.4,6.31473933]
[1772641912916,6.24123771,2148.8,2147.0,4.65722801]
[1772641912917,6.24123771,2148.4,2147.0,1.16438784]
[1772641913254,6.24123771,2148.4,2147.0,2.28138784]
[1772641913544,6.24123771,2148.2,2147.0,2.28138784]
[1772641913930,1.16381918,2148.1,2147.0,8.59612717]
[1772641914138,1.16381918,2148.1,2147.0,2.28138784]
[1772641914449,7.40505689,2148.1,2147.0,2.28138784]
[1772641914942,7.40505689,2148.1,2146.8,1.117]
[1772641915714,7.40505689,2148.1,2146.7,1.16457818]
[1772641916137,7.40505689,2148.1,2146.8,1.117]
[1772641916609,7.40505689,2148.1,2146.8,7.43173933]
[1772641917037,7.40505689,2148.1,2146.8,6.31473933]
[1772641917219,7.40505689,2148.1,2146.9,7.43173933]
[1772641917642,7.40505689,2148.1,2146.7,1.16457818]
[1772641917941,7.40505689,2148.1,2146.9,1.118]
[1772641918114,7.40505689,2148.1,2147.0,7.47915479]
[1772641918653,6.24123771,2148.0,2147.0,1.16441546]
[1772641918867,6.24123771,2148.0,2147.0,1.118]
[1772641920260,1.16392755,2147.9,2147.0,2.2823909]
[1772641920559,1.16392755,2147.9,2146.6,10.97325646]
[1772641920560,6.24123771,2147.7,2146.7,1.118]
[1772641920857,7.37223771,2147.7,2146.3,1.118]
[1772641921257,6.24123771,2147.5,2146.1,7.47963211]
[1772641921555,6.24123771,2147.5,2146.1,8.59763211]
[1772641921758,6.24123771,2147.5,2146.2,6.31473933]
[1772641921978,0.14948499,2147.4,2146.1,1.118]
[1772641922294,6.24123771,2147.1,2146.1,2.28289915]
[1772641923027,6.24123771,2147.1,2145.7,7.47986026]
[1772641923431,6.24123771,2147.1,2145.7,1.16512093]
[1772641924086,6.24123771,2146.9,2145.7,1.16512093]
[1772641924236,6.24123771,2146.7,2145.5,1.16520183]
[1772641924438,6.24123771,2146.7,2145.2,1.1653451]
[1772641924656,6.24123771,2146.5,2145.2,1.1653451]
[1772641924860,6.24123771,2146.5,2145.1,7.48017636]
[1772641925057,6.24123771,2146.3,2144.9,1.118]
[1772641925264,6.24123771,2146.1,2144.7,1.16664699]
[1772641925569,6.24123771,2145.5,2144.7,0.001]
[1772641925862,6.24123771,2145.5,2144.5,0.001]
[1772641925863,7.37323771,2145.5,2144.5,0.001]
[1772641926045,7.40652157,2145.4,2144.5,0.001]
[1772641926658,1.16528386,2145.4,2144.5,6.31573933]
[1772641926875,7.37323771,2145.8,2144.5,6.31573933]
[1772641926876,1.16512093,2145.7,2144.5,7.43373933]
[1772641927569,7.40635864,2145.7,2144.5,7.43373933]
[1772641928260,7.40635864,2145.7,2144.5,1.119]
[1772641928462,7.40635864,2145.7,2144.5,2.28475895]
[1772641928638,7.40635864,2145.7,2144.5,1.119]
[1772641928962,7.40635864,2145.7,2144.5,8.59948994]
[1772641929258,7.40635864,2145.7,2144.5,1.16675567]
[1772641929446,7.40635864,2145.7,2144.7,0.001]
[1772641929856,6.24123771,2145.5,2144.7,0.001]
[1772641930063,7.37323771,2145.5,2144.7,0.001]
[1772641930265,1.16528386,2145.4,2144.7,0.001]
[1772641930567,7.40652157,2145.4,2144.7,0.001]
[1772641935275,1.16528386,2145.4,2144.7,0.001]
[1772641936544,4.66085081,2145.6,2144.7,0.001]
[1772641936874,1.16517524,2145.6,2144.7,0.001]
[1772641939585,4.66011299,2145.9,2144.7,5.72650951]
[1772641939877,5.93876081,2146.0,2144.7,5.72650951]
[1772641940041,7.10317627,2147.0,2144.7,5.72650951]
[1772641940244,1.137,2146.9,2144.9,5.72550951]
[1772641940445,1.137,2146.9,2145.1,5.72550951]
[1772641941490,0.002,2147.1,2145.5,5.72550951]
[1772641941694,5.94076081,2147.1,2145.6,1.116]
[1772641941855,5.94076081,2147.1,2145.7,5.72550951]
[1772641942684,5.93876081,2146.9,2145.4,1.16528386]
[1772641942886,5.93876081,2146.7,2145.3,6.890805]
[1772641943106,5.93876081,2146.7,2145.3,1.16529549]
[1772641943582,5.93876081,2146.5,2145.1,5.72550951]
[1772641943962,1.16463244,2146.6,2145.1,5.72550951]
[1772641944165,7.10339325,2146.6,2145.1,5.72550951]
[1772641944473,1.16463244,2146.6,2145.1,5.72550951]
[1772641944661,1.1644697,2146.9,2145.1,5.72550951]
[1772641944907,6.91588337,2146.9,2145.1,5.72550951]
[1772641945366,1.1644697,2146.9,2145.1,5.72550951]
[1772641945760,1.1644697,2146.9,2145.3,6.15642241]
[1772641946175,6.91588337,2146.9,2145.3,6.15742241]
[1772641946380,6.91588337,2146.9,2145.4,7.27142241]
[1772641947688,6.91588337,2146.9,2145.5,1.16522955]
[1772641948297,6.91588337,2146.9,2145.5,7.32165196]
[1772641949294,5.75141367,2146.7,2145.5,7.32165196]
[1772641949887,6.91604611,2146.6,2145.5,7.32165196]
[1772641951102,6.88941367,2146.5,2145.3,0.001]
[1772641951262,6.18398235,2146.4,2145.3,1.1663289]
[1772641951462,5.75141367,2146.4,2145.3,1.1663289]
[1772641951663,5.75141367,2146.4,2145.3,0.001]
[1772641951892,6.91626317,2146.2,2145.3,0.001]
[1772641952193,5.75141367,2146.0,2144.7,1.16666269]
[1772641952495,5.75141367,2145.8,2144.7,1.16666269]
[1772641952661,6.91626317,2146.2,2144.7,7.32308148]
[1772641952862,2.3038495,2146.2,2144.7,7.32308148]
[1772641953285,5.75141367,2146.1,2144.7,7.32308148]
[1772641953487,2.3038495,2146.2,2144.7,7.32308148]
[1772641953889,5.75141367,2145.9,2144.7,7.32308148]
[1772641954393,0.43318359,2145.8,2144.7,7.32308148]
[1772641954598,5.75141367,2145.9,2144.7,7.32308148]
[1772641954927,6.18459625,2145.8,2144.7,7.32308484]
[1772641955206,2.47411206,2145.9,2144.7,7.32308484]
[1772641955499,1.16495806,2146.0,2144.7,7.32308484]
[1772641955668,6.91637173,2146.0,2144.7,7.32308484]
[1772641955868,1.16506664,2145.8,2144.9,1.1655555]
[1772641956373,4.65993231,2146.0,2144.9,7.32197791]
[1772641956580,1.16495806,2146.0,2144.9,7.32197791]
[1772641956787,5.75141367,2146.3,2144.9,7.32197791]
[1772641957080,1.16490285,2146.2,2144.9,7.32197791]
[1772641957895,1.16473458,2146.5,2144.9,7.32197791]
[1772641958699,1.16466198,2146.6,2144.9,7.32197791]
[1772641959366,1.14,2146.8,2145.1,6.15642241]
[1772641960421,1.16457818,2146.7,2145.3,6.15642241]
[1772641960738,1.16457818,2146.7,2145.5,6.15642241]
[1772641961306,1.16441546,2147.0,2145.5,6.15642241]
[1772641962108,1.16639901,2147.1,2145.5,6.15642241]
[1772641962418,0.002,2147.1,2145.9,6.15642241]
[1772641962803,0.002,2146.6,2145.9,6.15642241]
[1772641963223,0.002,2147.1,2146.1,6.15642241]
[1772641963614,0.002,2146.8,2146.1,6.15642241]
[1772641964401,0.002,2147.1,2146.1,6.15642241]
[1772641964633,1.14,2148.0,2146.4,6.15642241]
[1772641965002,7.22672978,2148.1,2146.4,6.15642241]
[1772641965200,6.06291027,2148.1,2146.4,6.15642241]
[1772641965803,7.22673856,2148.1,2146.4,6.15642241]
[1772641966002,5.75141367,2148.0,2146.4,6.15642241]
[1772641966721,6.91529976,2148.0,2146.6,6.15642241]
[1772641967834,5.75141367,2148.3,2146.6,6.15642241]
[1772641968156,5.75141367,2148.1,2146.6,6.15642241]
[1772641969468,6.75495459,2148.0,2146.7,6.86298991]
[1772641970865,6.75495459,2148.0,2146.5,1.16468669]
[1772641970866,5.59108122,2147.8,2146.5,1.16468669]
[1772641971034,5.59108122,2147.6,2146.1,10.35790688]
[1772641971236,5.59108122,2147.4,2146.1,10.35790688]
[1772641971458,5.59108122,2147.2,2146.1,10.35790688]
[1772641971837,5.59108122,2147.2,2146.1,4.65949515]
[1772641972550,1.16425278,2147.3,2146.2,5.69841173]